Cogmind - Beta 14 @@@ ROGUE MODE // 2024.11.26 @ 12:57:21 Player: MarKhan Result: Destroyed by S-43 Plague with Heavy Machine Gun Performance ------------- Evolutions (8) 4000 Regions Visited (12) 2400 Robots Destroyed (3) 15 Value Destroyed (61) 61 Prototype IDs (3) 60 Alien Tech Used (0) 0 Bonus (1000) 1000 TOTAL SCORE: 7536 Bonus ------- Entered DSFs 1000 Cogmind --------- Core Integrity 0/1450 Matter 205/300 Energy 100/100 System Corruption 5% Temperature Cool (0) Movement Core (50) Location -2/Research Parts ------- > --- POWER (1) -------- (None) > --- PROPULSION (2) --- (None) > --- UTILITY (2) ------ (None) > --- WEAPON (18) ------ (None) > --- INVENTORY (5) ---- (None) Peak State ------------ None Favorites ----------- Power None Propulsion None Utility None Weapon None Build | -11 -10 -9 -8 -7 -6 -6 -5 -4 -4 -3 -3 -2 ------- Run | Yrd Mat Mat Mat Fac Fac DSF Fac Fac DSF Res Qua Res Slots Evolved 16 | . . 2 2 2 2 . 2 2 . 2 . 2 Power . | . . . . . . . . . . . . . Propulsion . | . . . . . . . . . . . . . Utility . | . . . . . . . . . . . . . Weapon 16 | . . 2 2 2 2 . 2 2 . 2 . 2 Parts Attached . | . . . . . . . . . . . . . Power . | . . . . . . . . . . . . . Engine . | . . . . . . . . . . . . . Core . | . . . . . . . . . . . . . Reactor . | . . . . . . . . . . . . . Propulsion . | . . . . . . . . . . . . . Treads . | . . . . . . . . . . . . . Leg . | . . . . . . . . . . . . . Wheel . | . . . . . . . . . . . . . Hover . | . . . . . . . . . . . . . Flight . | . . . . . . . . . . . . . Utility . | . . . . . . . . . . . . . Device . | . . . . . . . . . . . . . Storage . | . . . . . . . . . . . . . Processor . | . . . . . . . . . . . . . Hackware . | . . . . . . . . . . . . . Protection . | . . . . . . . . . . . . . Artifact . | . . . . . . . . . . . . . Weapon . | . . . . . . . . . . . . . Energy Gun . | . . . . . . . . . . . . . Energy Cannon . | . . . . . . . . . . . . . Ballistic Gun . | . . . . . . . . . . . . . Ballistic Cannon . | . . . . . . . . . . . . . Launcher . | . . . . . . . . . . . . . Special Weapon . | . . . . . . . . . . . . . Impact Weapon . | . . . . . . . . . . . . . Slashing Weapon . | . . . . . . . . . . . . . Piercing Weapon . | . . . . . . . . . . . . . Special Melee Weapon . | . . . . . . . . . . . . . Unidentified Prototypes . | . . . . . . . . . . . . . Parts Lost . | . . . . . . . . . . . . . Power . | . . . . . . . . . . . . . Propulsion . | . . . . . . . . . . . . . Utility . | . . . . . . . . . . . . . Weapon . | . . . . . . . . . . . . . Highest Loss Streak . | . . . . . . . . . . . . . To Critical Strikes . | . . . . . . . . . . . . . Average Slot Usage (%) . | . . . . . . . . . . . . . Peak Build Rating . | . . . . . . . . . . . . . Average Rating . | . . . . . . . . . . . . . On Entrance . | . . . . . . . . . . . . . Naked Turns 1291 | . 98 47 80 371 51 15 202 34 32 49 110 202 Heaviest Build . | . . . . . . . . . . . . . Greatest Support 3 | 3 3 3 3 3 3 3 3 3 3 3 3 3 Greatest Overweight (x) . | . . . . . . . . . . . . . Average Overweight (x) . | . . . . . . . . . . . . . Largest Inventory Capacity 5 | 5 5 5 5 5 5 5 5 5 5 5 5 5 Average Capacity 5 | 5 5 5 5 5 5 5 5 5 5 5 5 5 Most Carried . | . . . . . . . . . . . . . Average Carried . | . . . . . . . . . . . . . Final Capacity 5 | 5 5 5 5 5 5 5 5 5 5 5 5 5 Final Carried . | . . . . . . . . . . . . . Class Distribution -------------------- 100% | Mutant Dominant Class ---------------- Mutant | -10/Materials Mutant | -9/Materials Mutant | -8/Materials Mutant | -7/Factory Mutant | -6/Factory Mutant | -6/DSF Mutant | -5/Factory Mutant | -4/Factory Mutant | -4/DSF Mutant | -3/Research Mutant | -3/Quarantine Mutant | -2/Research Resources | -11 -10 -9 -8 -7 -6 -6 -5 -4 -4 -3 -3 -2 ----------- Run | Yrd Mat Mat Mat Fac Fac DSF Fac Fac DSF Res Qua Res Matter Collected 3 | . . . . . . . . . 3 . . . Remotely . | . . . . . . . . . . . . . Salvage Created 58 | . 58 . . . . . . . . . . . Parts 3 | . 3 . . . . . . . . . . . Haulers Intercepted . | . . . . . . . . . . . . . Recyclers Shooed . | . . . . . . . . . . . . . Parts Field Recycled . | . . . . . . . . . . . . . Retrieved Matter . | . . . . . . . . . . . . . Parts Self-Destructed . | . . . . . . . . . . . . . Prevented . | . . . . . . . . . . . . . Kills | -11 -10 -9 -8 -7 -6 -6 -5 -4 -4 -3 -3 -2 ------- Run | Yrd Mat Mat Mat Fac Fac DSF Fac Fac DSF Res Qua Res Combat Hostiles Destroyed 1 | . 1 . . . . . . . . . . . AOE 1 | . 1 . . . . . . . . . . . Classes Destroyed 3 | . 3 . . . . . . . . . . . Builder 1 | . 1 . . . . . . . . . . . Watcher 1 | . 1 . . . . . . . . . . . Swarmer 1 | . 1 . . . . . . . . . . . Best Kill Streak 2 | . 2 . . . . . . . . . . . Combat Bots Only 1 | . 1 . . . . . . . . . . . Max Kills in Single Turn 2 | . 2 . . . . . . . . . . . Gunslinging . | . . . . . . . . . . . . . Exploded 1 | . 1 . . . . . . . . . . . Melee . | . . . . . . . . . . . . . Uniques/NPCs Destroyed . | . . . . . . . . . . . . . Combat | -11 -10 -9 -8 -7 -6 -6 -5 -4 -4 -3 -3 -2 -------- Run | Yrd Mat Mat Mat Fac Fac DSF Fac Fac DSF Res Qua Res Hostile Shots Fired 409 | . 18 51 9 93 . 1 81 . 13 . 38 105 Missed 171 | . 9 18 3 43 . . 32 . 6 . 14 46 Damage Taken 4506 | . 85 341 80 641 . 50 924 . 451 . 483 1451 Core 4506 | . 85 341 80 641 . 50 924 . 451 . 483 1451 Absorbed by Shields 7 | . . . . 7 . . . . . . . . Core Remaining (%) 55 | 100 66 14 85 8 . 94 7 . 60 . 62 . Volleys Fired . | . . . . . . . . . . . . . Largest . | . . . . . . . . . . . . . Hottest . | . . . . . . . . . . . . . Shots Fired . | . . . . . . . . . . . . . Gun . | . . . . . . . . . . . . . Cannon . | . . . . . . . . . . . . . Launcher . | . . . . . . . . . . . . . Special . | . . . . . . . . . . . . . Kinetic . | . . . . . . . . . . . . . Thermal . | . . . . . . . . . . . . . Explosive . | . . . . . . . . . . . . . Electromagnetic . | . . . . . . . . . . . . . Robot Hit Streak . | . . . . . . . . . . . . . Robot Miss Streak . | . . . . . . . . . . . . . Penetration Max . | . . . . . . . . . . . . . Secondary Targets . | . . . . . . . . . . . . . Shots Hit Robots . | . . . . . . . . . . . . . Core Hits 9 | . 3 . 1 2 . . 1 . . . . 2 Critical Kills . | . . . . . . . . . . . . . Critical Parts Destroyed . | . . . . . . . . . . . . . Critical Strikes . | . . . . . . . . . . . . . Melee Attacks . | . . . . . . . . . . . . . Impact . | . . . . . . . . . . . . . Slashing . | . . . . . . . . . . . . . Piercing . | . . . . . . . . . . . . . Sneak Attacks . | . . . . . . . . . . . . . Combat Hostiles . | . . . . . . . . . . . . . Follow-up Attacks . | . . . . . . . . . . . . . Damage Inflicted 322 | . 186 . 22 55 . . 17 . . . . 42 Guns . | . . . . . . . . . . . . . Cannons . | . . . . . . . . . . . . . Explosions 181 | . 181 . . . . . . . . . . . Melee . | . . . . . . . . . . . . . Ramming 141 | . 5 . 22 55 . . 17 . . . . 42 Kinetic . | . . . . . . . . . . . . . Thermal 110 | . 110 . . . . . . . . . . . Explosive . | . . . . . . . . . . . . . Electromagnetic 71 | . 71 . . . . . . . . . . . Impact . | . . . . . . . . . . . . . Slashing . | . . . . . . . . . . . . . Piercing . | . . . . . . . . . . . . . Highest Corruption 5 | . 2 . . 5 . . 3 . . . 1 5 Average Corruption 2 | . 2 . . 1 . . 3 . . . 1 3 Corruption Purged . | . . . . . . . . . . . . . Corruption Blocked . | . . . . . . . . . . . . . Effects 7 | . . . . 4 . . . . . . 1 2 Message Errors 3 | . . . . 1 . . . . . . . 2 Matter Fused 2 | . . . . 1 . . . . . . 1 . Heat Flow Errors 1 | . . . . 1 . . . . . . . . Energy Discharges 1 | . . . . 1 . . . . . . . . Overload Shots . | . . . . . . . . . . . . . Overflow Damage 80 | . 80 . . . . . . . . . . . Projectiles . | . . . . . . . . . . . . . Explosions 80 | . 80 . . . . . . . . . . . Melee . | . . . . . . . . . . . . . Knockbacks 1 | . . . . 1 . . . . . . . . Impact 1 | . . . . 1 . . . . . . . . Kinetic . | . . . . . . . . . . . . . Secondary . | . . . . . . . . . . . . . Self-Inflicted Damage 85 | . 23 . 10 25 . . 8 . . . . 19 Shots 1 | . 1 . . . . . . . . . . . Rammed 34 | . 2 . 6 12 . . 3 . . . . 11 Targets Rammed 34 | . 2 . 6 12 . . 3 . . . . 11 Kicked . | . . . . . . . . . . . . . Crushed . | . . . . . . . . . . . . . Highest Temperature 142 | . . . . 142 . . . . . . . . Average Temperature 74 | . . . . 74 . . . . . . . . Received Heat Transfer 509 | . . 93 27 142 . . 45 . . . 166 36 Siege Activations . | . . . . . . . . . . . . . Robots Corrupted . | . . . . . . . . . . . . . Combat Hostiles . | . . . . . . . . . . . . . Parts Fried . | . . . . . . . . . . . . . Impact Corruptions . | . . . . . . . . . . . . . Robots Melted . | . . . . . . . . . . . . . Combat Hostiles . | . . . . . . . . . . . . . Parts Melted . | . . . . . . . . . . . . . Heat Transferred 50 | . 50 . . . . . . . . . . . Parts Sabotaged . | . . . . . . . . . . . . . Parts Stolen . | . . . . . . . . . . . . . Parts Stripped . | . . . . . . . . . . . . . Power Chain Reactions 3 | . . . . 1 . . 1 . . . . 1 Alert | -11 -10 -9 -8 -7 -6 -6 -5 -4 -4 -3 -3 -2 ------- Run | Yrd Mat Mat Mat Fac Fac DSF Fac Fac DSF Res Qua Res Peak Influence 479 | . 218 136 141 479 234 163 330 161 112 78 118 376 Initial 234 | . . 91 63 63 234 163 85 161 112 63 43 66 Average 160 | . 57 111 90 242 234 163 159 161 112 66 72 164 Maximum Alert Level 2 | . 1 . . 2 1 . 1 . . . . 1 Low Security (%) 72 | 100 88 100 100 53 . 100 65 100 100 100 100 72 Level 1 21 | . 11 . . 25 100 . 34 . . . . 27 Level 2 6 | . . . . 21 . . . . . . . . Level 3 . | . . . . . . . . . . . . . Level 4 . | . . . . . . . . . . . . . Level 5 . | . . . . . . . . . . . . . High Security . | . . . . . . . . . . . . . Max Security . | . . . . . . . . . . . . . Squads Dispatched 16 | . . 1 1 4 . . 2 . 1 1 1 5 Investigation 9 | . . . . 3 . . 2 . . . 1 3 Extermination . | . . . . . . . . . . . . . Reinforcement 7 | . . 1 1 1 . . . . 1 1 . 2 Assault . | . . . . . . . . . . . . . Garrison . | . . . . . . . . . . . . . Intercept . | . . . . . . . . . . . . . Searches Triggered . | . . . . . . . . . . . . . Construction Impeded . | . . . . . . . . . . . . . Haulers Reinforced . | . . . . . . . . . . . . . Active Scanning Responses . | . . . . . . . . . . . . . Cargo Convoy Interrupts . | . . . . . . . . . . . . . Stealth | -11 -10 -9 -8 -7 -6 -6 -5 -4 -4 -3 -3 -2 --------- Run | Yrd Mat Mat Mat Fac Fac DSF Fac Fac DSF Res Qua Res Distress Signals 6 | . 1 1 . 1 . . . . . . 2 1 Communications Jammed . | . . . . . . . . . . . . . Distress Signals . | . . . . . . . . . . . . . Times Spotted 111 | . 9 11 6 21 . 1 19 . 2 1 9 32 Peak Tracking Total 15 | . 4 11 6 7 . 1 9 . 3 1 8 15 Tactical Retreats 19 | . 2 1 1 6 . . 3 . . . 1 5 Traps | -11 -10 -9 -8 -7 -6 -6 -5 -4 -4 -3 -3 -2 ------- Run | Yrd Mat Mat Mat Fac Fac DSF Fac Fac DSF Res Qua Res Traps Triggered 9 | . 5 . . . . . 1 . 1 . . 2 Indirectly 1 | . 1 . . . . . . . . . . . Trap Hack Attempts . | . . . . . . . . . . . . . Triggered . | . . . . . . . . . . . . . Disarmed . | . . . . . . . . . . . . . Reprogrammed . | . . . . . . . . . . . . . Reused . | . . . . . . . . . . . . . Traps Extracted . | . . . . . . . . . . . . . Installed . | . . . . . . . . . . . . . Triggered . | . . . . . . . . . . . . . Objects Rigged 4 | . 3 . 1 . . . . . . . . . Exploded 2 | . 2 . . . . . . . . . . . Machines | -11 -10 -9 -8 -7 -6 -6 -5 -4 -4 -3 -3 -2 ---------- Run | Yrd Mat Mat Mat Fac Fac DSF Fac Fac DSF Res Qua Res Machines Disabled 3 | . 3 . . . . . . . . . . . Max in Single Turn 2 | . 2 . . . . . . . . . . . Garrison Access 1 | . . . . . 1 . . . . . . . Machines Repaired . | . . . . . . . . . . . . . Machines Dismantled . | . . . . . . . . . . . . . Machines Sabotaged . | . . . . . . . . . . . . . Overloaded Fab Kills 8 | . . . . 2 . . . . . . . 6 Hacking | -11 -10 -9 -8 -7 -6 -6 -5 -4 -4 -3 -3 -2 --------- Run | Yrd Mat Mat Mat Fac Fac DSF Fac Fac DSF Res Qua Res Machines Accessed 21 | . 2 . 2 4 2 . 4 1 . . 2 4 Terminals 17 | . 2 . 2 3 1 . 3 1 . . 2 3 Fabricators 3 | . . . . 1 . . 1 . . . . 1 Repair Stations . | . . . . . . . . . . . . . Recycling Units . | . . . . . . . . . . . . . Scanalyzers . | . . . . . . . . . . . . . Garrison Access 1 | . . . . . 1 . . . . . . . Total Hacks 39 | . 4 . 5 10 3 . 6 1 . . 3 7 Successful 15 | . 3 . 3 2 2 . 2 1 . . . 2 Failed 24 | . 1 . 2 8 1 . 4 . . . 3 5 Catastrophic 11 | . . . 1 3 . . 1 . . . 2 4 Database Lockouts . | . . . . . . . . . . . . . Manual 19 | . 4 . 5 7 . . 2 . . . . 1 Terminals 33 | . 4 . 5 7 2 . 5 1 . . 3 6 Fabricators 5 | . . . . 3 . . 1 . . . . 1 Repair Stations . | . . . . . . . . . . . . . Recycling Units . | . . . . . . . . . . . . . Scanalyzers . | . . . . . . . . . . . . . Garrison Access 1 | . . . . . 1 . . . . . . . Terminal Hacks 5 | . . . . 1 1 . 1 1 . . . 1 Open DSF 4 | . . . . . 1 . 1 1 . . . 1 Branch Access Points 1 | . . . . 1 . . . . . . . . Fabricator Hacks . | . . . . . . . . . . . . . Repair Station Hacks . | . . . . . . . . . . . . . Recycling Unit Hacks . | . . . . . . . . . . . . . Scanalyzer . | . . . . . . . . . . . . . Garrison Access Hacks 1 | . . . . . 1 . . . . . . . Seal Access 1 | . . . . . 1 . . . . . . . Unauthorized Hacks 9 | . 3 . 3 1 . . 1 . . . . 1 Terminals 6 | . 3 . 3 . . . . . . . . . Botnet 1 | . 1 . . . . . . . . . . . Detonate 2 | . 1 . 1 . . . . . . . . . Skim 3 | . 1 . 2 . . . . . . . . . Fabricators 3 | . . . . 1 . . 1 . . . . 1 Overload 3 | . . . . 1 . . 1 . . . . 1 Repair Stations . | . . . . . . . . . . . . . Recycling Units . | . . . . . . . . . . . . . Scanalyzers . | . . . . . . . . . . . . . Garrison Access . | . . . . . . . . . . . . . Data Cores Recovered . | . . . . . . . . . . . . . Used . | . . . . . . . . . . . . . Hacking Detections 16 | . 2 . 2 4 1 . 2 . . . 2 3 Full Trace Events 6 | . . . . 2 . . 1 . . . 1 2 Feedback Events 1 | . . . . 1 . . . . . . . . Corruption 1 | . . . . 1 . . . . . . . . Feedback Blocked . | . . . . . . . . . . . . . Robot Schematics Acquired 2 | . . . . . . . . . . . 2 . Robots Built . | . . . . . . . . . . . . . Authchips . | . . . . . . . . . . . . . Time . | . . . . . . . . . . . . . Total Robot Build Rating . | . . . . . . . . . . . . . Part Schematics Acquired 3 | . . . . . . . . . . . 3 . Parts Built . | . . . . . . . . . . . . . Authchips . | . . . . . . . . . . . . . Time . | . . . . . . . . . . . . . Total Part Build Rating . | . . . . . . . . . . . . . Parts Repaired . | . . . . . . . . . . . . . Time . | . . . . . . . . . . . . . Parts Recycled . | . . . . . . . . . . . . . Recycled Matter . | . . . . . . . . . . . . . Retrieved Matter . | . . . . . . . . . . . . . Retrieved Components . | . . . . . . . . . . . . . Parts Scanalyzed . | . . . . . . . . . . . . . Part Schematics Acquired . | . . . . . . . . . . . . . Parts Damaged . | . . . . . . . . . . . . . Bothacking | -11 -10 -9 -8 -7 -6 -6 -5 -4 -4 -3 -3 -2 ------------ Run | Yrd Mat Mat Mat Fac Fac DSF Fac Fac DSF Res Qua Res Used RIF Installer . | . . . . . . . . . . . . . Robots Hacked . | . . . . . . . . . . . . . Non-combat . | . . . . . . . . . . . . . Combat . | . . . . . . . . . . . . . Robot Hacks Applied . | . . . . . . . . . . . . . Relay Couplers Released . | . . . . . . . . . . . . . Fabnet Peak Effective % . | . . . . . . . . . . . . . Robots Rewired 1 | . . . . 1 . . . . . . . . Allies Hacked . | . . . . . . . . . . . . . Hacks Repelled . | . . . . . . . . . . . . . Allies | -11 -10 -9 -8 -7 -6 -6 -5 -4 -4 -3 -3 -2 -------- Run | Yrd Mat Mat Mat Fac Fac DSF Fac Fac DSF Res Qua Res Total Allies 1 | . . . . 1 . . . . . . . . Largest Group 1 | . . . . 1 . . . . . . . . Highest-Rated Group 40 | . . . . 40 . . . . . . . . Highest-Rated Ally 40 | . . . . 40 . . . . . . . . Total Orders . | . . . . . . . . . . . . . Ally Attacks . | . . . . . . . . . . . . . Total Damage . | . . . . . . . . . . . . . Kills . | . . . . . . . . . . . . . Allies Corrupted . | . . . . . . . . . . . . . Allies Melted . | . . . . . . . . . . . . . Intel | -11 -10 -9 -8 -7 -6 -6 -5 -4 -4 -3 -3 -2 ------- Run | Yrd Mat Mat Mat Fac Fac DSF Fac Fac DSF Res Qua Res Robot Analysis Total . | . . . . . . . . . . . . . Derelict Logs Recovered . | . . . . . . . . . . . . . Drone Launches . | . . . . . . . . . . . . . Drone Recoveries . | . . . . . . . . . . . . . Exploration | -11 -10 -9 -8 -7 -6 -6 -5 -4 -4 -3 -3 -2 ------------- Run | Yrd Mat Mat Mat Fac Fac DSF Fac Fac DSF Res Qua Res Turns Passed 1300 | 9 98 47 80 371 51 15 202 34 32 49 110 202 Spaces Moved 2510 | 18 191 94 148 699 102 30 398 68 64 97 220 381 Core 2510 | 18 191 94 148 699 102 30 398 68 64 97 220 381 Treads . | . . . . . . . . . . . . . Legs . | . . . . . . . . . . . . . Wheels . | . . . . . . . . . . . . . Hover . | . . . . . . . . . . . . . Flight . | . . . . . . . . . . . . . Fastest Speed 50 | 50 50 50 50 50 50 50 50 50 50 50 50 50 Average Speed 50 | 50 50 50 50 50 50 50 50 50 50 50 50 50 Slowest Speed 50 | 50 50 50 50 50 50 50 50 50 50 50 50 50 Overloaded Moves . | . . . . . . . . . . . . . Propulsion Burnouts . | . . . . . . . . . . . . . Robots Hopped . | . . . . . . . . . . . . . Cave-ins Triggered . | . . . . . . . . . . . . . Exploration Rate (%) 24 | 3 41 21 25 27 5 41 14 3 84 2 29 18 Regions Visited 12 Branch Regions 1 Pre-discovered Areas . | . . . . . . . . . . . . . Known Exits Taken 2 | . . . . . 1 . . 1 . . . . Unknown Exits Taken 8 | 1 1 1 1 1 . . 1 . . 1 1 . Scrap Searched . | . . . . . . . . . . . . . Spaces Dug . | . . . . . . . . . . . . . Terrain Destroyed 37 | . 37 . . . . . . . . . . . Melee . | . . . . . . . . . . . . . Projectile . | . . . . . . . . . . . . . AOE 37 | . 37 . . . . . . . . . . . Terrain Rammed . | . . . . . . . . . . . . . Walls Destroyed . | . . . . . . . . . . . . . Machines Disabled . | . . . . . . . . . . . . . Actions | -11 -10 -9 -8 -7 -6 -6 -5 -4 -4 -3 -3 -2 --------- Run | Yrd Mat Mat Mat Fac Fac DSF Fac Fac DSF Res Qua Res Total 2541 | 17 192 93 153 719 101 29 400 67 63 96 219 392 Wait . | . . . . . . . . . . . . . Move 2498 | 17 190 93 147 698 101 29 397 67 63 96 219 381 Hop . | . . . . . . . . . . . . . Pick Up . | . . . . . . . . . . . . . Fast Attach . | . . . . . . . . . . . . . Attach . | . . . . . . . . . . . . . Detach . | . . . . . . . . . . . . . Swap . | . . . . . . . . . . . . . Drop . | . . . . . . . . . . . . . Fire . | . . . . . . . . . . . . . Melee . | . . . . . . . . . . . . . Ram 34 | . 2 . 6 12 . . 3 . . . . 11 Kick . | . . . . . . . . . . . . . Crush . | . . . . . . . . . . . . . Escape Stasis . | . . . . . . . . . . . . . Rewire 9 | . . . . 9 . . . . . . . . Trap . | . . . . . . . . . . . . . Miscellaneous . | . . . . . . . . . . . . . Route ------- -11/Scrapyard -10/Materials -9/Materials -8/Materials -7/Factory (discovered 3 exits: *Fac / *Low x2) -6/Factory -6/DSF -5/Factory -4/Factory -4/DSF -3/Research -3/Quarantine -2/Research History --------- Turn | Location | Event 4 | -11/Scrapyard | Discovered new exit (range 13) 10 | -11/Scrapyard | Entered Materials 100 | -10/Materials | Discovered new exit (range 16) 108 | -10/Materials | Entered another Materials area 108 | -9/Materials | Evolved 2 slots: Weapon x2 136 | -9/Materials | Core integrity fell below 50% 148 | -9/Materials | Discovered new exit (range 15) 150 | -9/Materials | Core integrity fell below 20% 155 | -9/Materials | Entered another Materials area 155 | -8/Materials | Evolved 2 slots: Weapon x2 232 | -8/Materials | Discovered new exit (range 7) 235 | -8/Materials | Entered Factory 235 | -7/Factory | Evolved 2 slots: Weapon x2 249 | -7/Factory | Identified exit to Lower Caves 305 | -7/Factory | Build established: Mutant 460 | -7/Factory | Core integrity fell below 50% 540 | -7/Factory | Core integrity fell below 20% 598 | -7/Factory | Discovered new exit (range 16) 606 | -7/Factory | Entered another Factory area 606 | -6/Factory | Evolved 2 slots: Weapon x2 657 | -6/Factory | Identified exit to DSF 657 | -6/Factory | Entered DSF 664 | -6/DSF | Discovered new exit (range 15) 672 | -6/DSF | Entered Factory 672 | -5/Factory | Evolved 2 slots: Weapon x2 809 | -5/Factory | Core integrity fell below 50% 864 | -5/Factory | Core integrity fell below 20% 872 | -5/Factory | Discovered new exit (range 5) 874 | -5/Factory | Entered another Factory area 874 | -4/Factory | Evolved 2 slots: Weapon x2 908 | -4/Factory | Identified exit to DSF 908 | -4/Factory | Entered DSF 933 | -4/DSF | Additional patrols routed to DSF 933 | -4/DSF | Discovered new exit (range 15) 940 | -4/DSF | Entered Research 940 | -3/Research | Evolved 2 slots: Weapon x2 985 | -3/Research | Discovered new exit (range 7) 989 | -3/Research | Entered Quarantine 1094 | -3/Quarantine | Discovered new exit (range 10) 1099 | -3/Quarantine | Entered Research 1099 | -2/Research | Evolved 2 slots: Weapon x2 1228 | -2/Research | Core integrity fell below 50% 1268 | -2/Research | Core integrity fell below 20% 1301 | -2/Research | Destroyed by S-43 Plague with Heavy Machine Gun Last Messages --------------- 01265_ Triggered Gamma Bomb Trap. 01265_ A bubble of electromagnetic force engulfs the area. 01265_ Gamma Bomb Trap short circuited. 01265_ A bubble of electromagnetic force engulfs the area. 01265_ Gamma Bomb Trap short circuited. 01265_ A bubble of electromagnetic force engulfs the area. 01265_ Triggered Gamma Bomb Trap. 01265_ A bubble of electromagnetic force engulfs the area. 01293_ Slammed into S-43 Plague. 01293_ Destabilizing: System corrupted (+1). 01294_ Slammed into S-43 Plague. 01296_ Destabilizing: Core damaged (-43). 01297_ Q6SRUARSR>GFL3FNNDJH48S ATYHIQ 01297_ Slammed into S-43 Plague. 01297_ Destabilizing: Core damaged (-14). 01298_ Slammed into S-43 Plague. Map ----- +----------------------------------------------------+ | ?????????????????????????????????????????????????? | | ?????????????????????????????????????????????????? | | ?????????????????????????????????????????????????? | | ?????????????????????????????????????????????????? | | ?????????????????????????????????????????????????? | | ?????????????????????????????????????????????????? | | ?????????????????????????????????????????????????? | | ?????????????????????????????????????????????????? | | ?????????????????????????????????????????????????? | | ?????????????????????????????????????????????????? | | ?????????????????????????????????????????????????? | | ?????????????????????????????????????????????????? | | ????????????????#???##???????????????????????????? | | ???????????????? """S""?????????????????????????? | | ???????????????#? """ ""?????????????????????????? | | ???????????????# ?????????????????????????? | | ???????????????# ??????????????????????? | | ???????????????# !!! """ ??????????????????????? | | ???????????????# !! """???????????????????????? | | ???????????????#[ !! """???????????????????????? | | ???????????????# ????????????????????????? | | ???????????????? ????????????????????????? | | ????????????????? ] ?????????????????????????? | | ?????????????????? ?????????????????????????? | | ???????????????????#;#+###############???????????? | | ???????????????????# s@sss + == #???????????? | | ???????????????????# s#####s# == #???????????? | | ???????????????????# #???# # = #???????????? | | ???????????????????# #???# +? #???????????? | | ???????????????????# #???###? /#???????????? | | ???????????????????# #???????? ! #???????????? | | ???????????????????# #????????#####???????????? | | ???????????????????# #????????????????????????? | | ???????????????????# #????????????????????????? | | ???????????????????# #????????????????????????? | | ???????????????????+ #????????????????????????? | | ???????????????????# #????????????????????????? | | ???????????????????# #????????????????????????? | | ????????????######## ########?????????????????? | | ????????????# #?????????????????? | | ????????????# #?????????????????? | | ????????????# #?????????????????? | | ????????????# #?????????????????? | | ????????????# ########## #?????????????????? | | ????????????# ?????????# #?????????????????? | | ????????????# ??????????# #?????????????????? | | ??????????? / ??????????# #?????????????????? | | ?????????? # ?????????# #?????????????????? | | ????????????# #????????# #?????????????????? | | ????????????# #????????+ +?????????????????? | +----------------------------------------------------+ Best States ------------- Heat Dissipation 49 Energy Generation 5 Energy Capacity 100 Matter Stores 201 Matter Capacity 300 Sight Range 16 Terrain Scan Density 10 Evasion (%) 50 Item Schematics ----------------- Diametric Drive | -3/Quarantine | Archive Lgt. Antimatter Cannon | -3/Quarantine | Archive Gravity Neutralizer | -3/Quarantine | Archive Robot Schematics ------------------ L-61 Swordsman | -3/Quarantine | Archive A-02 Transporter | -3/Quarantine | Archive Fabricated ------------ Nothing Alien Tech Used ----------------- None Achievements -------------- Desperate Times Ride The Lightning Streaker Challenges ------------ None Game ------ Seed CatalystSubdwellerStripper Manual? 0 Play Time 00:21:16 Cumulative 142.5 hours Start 2024.11.26 @ 12:31:09 End 2024.11.26 @ 12:57:21 Sessions 1 Manual Loads 0 Difficulty Rogue Special Mode None Game No. 123 Rogue 123 Adventurer 0 Explorer 0 Win Type - Total 3 Types 3/0/0/0/0/0/0/0/0 Lore% 54 Gallery% 58 Achievement% 55 Wizard Run 0 Options --------- Layout 1 ASCII 0 Keyboard 1 Movement Arrows Keybinds 0 Fullscreen 0 Font 20/Smallcaps Map View 50x35 Zoom Use 0% Tactical HUD 1 Map Filters NONE Filters NONE Steam 1 RUN: 07d13739-c692-49dd-911f-3f814558d72b